Cogmind - Beta 9.6 @@@ ROGUE MODE // 2020.06.01 @ 18:46:33 Player: pointone Result: Destroyed by G-34 Mercenary with Small Laser Performance ------------- Evolutions (0) 0 Regions Visited (1) 200 Robots Destroyed (9) 45 Value Destroyed (298) 298 Prototype IDs (0) 0 Alien Tech Used (0) 0 Bonus (0) 0 TOTAL SCORE: 543 Bonus ------- None Cogmind --------- Core Integrity 0/250 Matter 282/300 Energy 100/100 System Corruption 0% Temperature Cool (6) Movement Walking (120) Location -10/Materials Parts ------- > --- POWER (1) -------- (None) > --- PROPULSION (2) --- Aluminum Leg Aluminum Leg > --- UTILITY (2) ------ Large Storage Unit Weapon Shielding > --- WEAPON (2) ------- (None) > --- INVENTORY (10) --- Light Ion Engine Aluminum Leg Aluminum Leg Heat Sink Peak State ------------ > --- POWER ------------ Light Ion Engine > --- PROPULSION ------- Aluminum Leg Aluminum Leg > --- UTILITY ---------- Heat Sink Large Storage Unit > --- WEAPON ----------- Assault Rifle Grenade Launcher > --- INVENTORY -------- Light Ion Engine Aluminum Leg [Rating: 7] Favorites ----------- Power Light Ion Engine Engine Light Ion Engine Propulsion Aluminum Leg Leg Aluminum Leg Utility Large Storage Unit Device Heat Sink Storage Large Storage Unit Protection Weapon Shielding Weapon Assault Rifle Ballistic Gun Assault Rifle Launcher Grenade Launcher Build | -11 -10 ------- Run | Scr Mat Slots Evolved . | . . Power . | . . Propulsion . | . . Utility . | . . Weapon . | . . Parts Attached 10 | 5 5 Power 2 | 1 1 Engine 2 | 1 1 Core . | . . Reactor . | . . Propulsion 3 | 2 1 Treads . | . . Leg 3 | 2 1 Wheel . | . . Hover . | . . Flight . | . . Utility 3 | 1 2 Device 1 | 1 . Storage 1 | . 1 Processor . | . . Hackware . | . . Protection 1 | . 1 Artifact . | . . Weapon 2 | 1 1 Energy Gun . | . . Energy Cannon . | . . Ballistic Gun 1 | 1 . Ballistic Cannon . | . . Launcher 1 | . 1 Special Weapon . | . . Impact Weapon . | . . Slashing Weapon . | . . Piercing Weapon . | . . Special Melee Weapon . | . . Unidentified Prototypes . | . . Parts Lost 4 | . 4 Power 2 | . 2 Propulsion . | . . Utility . | . . Weapon 2 | . 2 Highest Loss Streak 2 | . 2 Average Slot Usage (%) 88 | . 88 Engine 8 | . 8 Leg 28 | . 28 Device 11 | . 11 Storage 11 | . 11 Protection 2 | . 2 Ballistic Gun 13 | . 13 Launcher 11 | . 11 Naked Turns . | . . Heaviest Build 25 | 6 25 Greatest Support 20 | 20 20 Greatest Overweight (x) 1 | . 1 Average Overweight (x) . | . . Largest Inventory Capacity 10 | 4 10 Average Capacity 7 | 4 9 Most Carried 4 | 1 4 Average Carried 1 | . 2 Final Capacity 10 | 4 10 Final Carried 4 | 1 4 Class Distribution -------------------- 100% | Mutant Dominant Class ---------------- Mutant | -10/Materials Resources | -11 -10 ----------- Run | Scr Mat Matter Collected 428 | 263 165 Remotely . | . . Salvage Created 282 | 37 245 Parts 16 | 3 13 Haulers Intercepted . | . . Recyclers Shooed 1 | . 1 Parts Field Recycled . | . . Retrieved Matter . | . . Parts Self-Destructed . | . . Prevented . | . . Kills | -11 -10 ------- Run | Scr Mat Combat Hostiles Destroyed 7 | 1 6 Guns 4 | 1 3 AOE 3 | . 3 Classes Destroyed 3 | 1 2 Builder 1 | . 1 Watcher 1 | . 1 Grunt 7 | 1 6 Best Kill Streak 4 | 1 4 Combat Bots Only 3 | 1 3 Max Kills in Single Turn 2 | 1 2 Gunslinging . | . . Exploded 1 | . 1 Melee . | . . Uniques/NPCs Destroyed . | . . Combat | -11 -10 -------- Run | Scr Mat Damage Taken 753 | 46 707 Core 259 | 12 247 Absorbed by Shields . | . . Core Remaining (%) 95 | 95 . Volleys Fired 22 | 5 17 Largest 2 | 1 2 Hottest 50 | 20 50 Shots Fired 32 | 5 27 Gun 22 | 5 17 Cannon . | . . Launcher 10 | . 10 Special . | . . Kinetic 22 | 5 17 Thermal . | . . Explosive 10 | . 10 Electromagnetic . | . . Robot Hit Streak 7 | 4 7 Robot Miss Streak 2 | 1 2 Penetration Max . | . . Secondary Targets . | . . Shots Hit Robots 18 | 4 14 Core Hits 23 | 2 21 Critical Hits . | . . Critical Kills . | . . Critical Parts Destroyed . | . . Melee Attacks . | . . Impact . | . . Slashing . | . . Piercing . | . . Sneak Attacks . | . . Combat Hostiles . | . . Follow-up Attacks . | . . Damage Inflicted 696 | 47 649 Guns 181 | 47 134 Cannons . | . . Explosions 515 | . 515 Melee . | . . Ramming . | . . Kinetic 181 | 47 134 Thermal . | . . Explosive 515 | . 515 Electromagnetic . | . . Impact . | . . Slashing . | . . Piercing . | . . Highest Corruption . | . . Average Corruption . | . . Corruption Purged . | . . Overload Shots . | . . Overflow Damage . | . . Projectiles . | . . Explosions . | . . Melee . | . . Knockbacks . | . . Impact . | . . Kinetic . | . . Secondary . | . . Self-Inflicted Damage 18 | . 18 Shots 1 | . 1 Rammed . | . . Targets Rammed . | . . Kicked . | . . Crushed . | . . Highest Temperature 6 | . 6 Average Temperature 1 | . 1 Received Heat Transfer 417 | 24 393 Siege Activations . | . . Robots Corrupted . | . . Combat Hostiles . | . . Parts Fried . | . . Impact Corruptions . | . . Robots Melted . | . . Combat Hostiles . | . . Parts Melted . | . . Heat Transferred . | . . Parts Sabotaged . | . . Parts Stolen . | . . Parts Stripped . | . . Power Chain Reactions . | . . Missiles Intercepted . | . . Alert | -11 -10 ------- Run | Scr Mat Peak Influence 190 | 20 190 Average Influence 58 | 2 80 Maximum Alert Level . | . . Low Security (%) 100 | 100 100 Level 1 . | . . Level 2 . | . . Level 3 . | . . Level 4 . | . . Level 5 . | . . High Security . | . . Max Security . | . . Squads Dispatched 3 | . 3 Investigation 3 | . 3 Extermination . | . . Reinforcement . | . . Assault . | . . Garrison . | . . Intercept . | . . Construction Impeded . | . . Haulers Reinforced . | . . Stealth | -11 -10 --------- Run | Scr Mat Distress Signals . | . . Communications Jammed . | . . Distress Signals . | . . Times Spotted 14 | 1 13 Peak Tracking Total 5 | 1 5 Tactical Retreats 1 | . 1 Traps | -11 -10 ------- Run | Scr Mat Traps Triggered 3 | . 3 Indirectly . | . . Trap Hack Attempts . | . . Triggered . | . . Disarmed . | . . Reprogrammed . | . . Reused . | . . Traps Extracted . | . . Installed . | . . Triggered . | . . Machines | -11 -10 ---------- Run | Scr Mat Machines Disabled . | . . Max in Single Turn . | . . Machines Sabotaged . | . . Garrisons Compromised . | . . Overloaded Fab Kills . | . . Fab Network Shutdowns . | . . Hacking | -11 -10 --------- Run | Scr Mat Machines Accessed 1 | . 1 Terminals 1 | . 1 Fabricators . | . . Repair Stations . | . . Recycling Units . | . . Scanalyzers . | . . Garrison Access . | . . Total Hacks 2 | . 2 Successful 1 | . 1 Failed 1 | . 1 Catastrophic . | . . Database Lockouts . | . . Manual . | . . Terminals 2 | . 2 Fabricators . | . . Repair Stations . | . . Recycling Units . | . . Scanalyzers . | . . Garrison Access . | . . Terminal Hacks 1 | . 1 Recall Investigation 1 | . 1 Fabricator Hacks . | . . Repair Station Hacks . | . . Recycling Unit Hacks . | . . Scanalyzer . | . . Garrison Access Hacks . | . . Unauthorized Hacks . | . . Terminals . | . . Fabricators . | . . Repair Stations . | . . Recycling Units . | . . Scanalyzers . | . . Garrison Access . | . . Data Cores Recovered . | . . Used . | . . Hacking Detections 1 | . 1 Full Trace Events 1 | . 1 Feedback Events . | . . Feedback Blocked . | . . Robot Schematics Acquired . | . . Robots Built . | . . Matter . | . . Time . | . . Total Robot Build Rating . | . . Part Schematics Acquired . | . . Parts Built . | . . Matter . | . . Time . | . . Total Part Build Rating . | . . Parts Repaired . | . . Time . | . . Parts Recycled . | . . Recycled Matter . | . . Retrieved Matter . | . . Retrieved Components . | . . Parts Scanalyzed . | . . Part Schematics Acquired . | . . Parts Damaged . | . . Bothacking | -11 -10 ------------ Run | Scr Mat Used RIF Installer . | . . Robots Hacked . | . . Non-combat . | . . Combat . | . . Robot Hacks Applied . | . . Relay Couplers Released . | . . Robots Rewired . | . . Allies Hacked . | . . Hacks Repelled . | . . Allies | -11 -10 -------- Run | Scr Mat Total Allies . | . . Largest Group . | . . Highest-Rated Group . | . . Highest-Rated Ally . | . . Total Orders . | . . Ally Attacks . | . . Total Damage . | . . Kills . | . . Allies Corrupted . | . . Allies Melted . | . . Intel | -11 -10 ------- Run | Scr Mat Robot Analysis Total . | . . Derelict Logs Recovered . | . . Drone Launches . | . . Drone Recoveries . | . . Exploration | -11 -10 ------------- Run | Scr Mat Turns Passed 274 | 76 198 Spaces Moved 156 | 56 100 Core 13 | 13 . Treads . | . . Legs 143 | 43 100 Wheels . | . . Hover . | . . Flight . | . . Fastest Speed 50 | 50 120 Average Speed 126 | 103 138 Slowest Speed 150 | 120 150 Overloaded Moves . | . . Propulsion Burnouts . | . . Robots Hopped . | . . Cave-ins Triggered . | . . Exploration Rate (%) 25 | 8 42 Regions Visited 1 Branch Regions . Pre-discovered Areas . | . . Known Exits Taken . | . . Unknown Exits Taken 1 | 1 . Scrap Searched . | . . Spaces Dug . | . . Terrain Destroyed 63 | . 63 Melee . | . . Projectile . | . . AOE 63 | . 63 Actions | -11 -10 --------- Run | Scr Mat Total 196 | 66 130 Wait 5 | . 5 Move 155 | 55 100 Hop . | . . Pick Up 3 | 1 2 Fast Attach 8 | 5 3 Attach 1 | . 1 Detach 1 | . 1 Swap 1 | . 1 Drop . | . . Fire 22 | 5 17 Melee . | . . Ram . | . . Kick . | . . Crush . | . . Escape Stasis . | . . Rewire . | . . Trap . | . . Miscellaneous . | . . Route ------- -11/Scrapyard -10/Materials (discovered 1 exit: [*Mat]) History --------- Turn | Location | Event 2 | -11/Scrapyard | Met Revision 17 51 | -11/Scrapyard | Discovered new exit (range 8) 77 | -11/Scrapyard | Entered Materials 196 | -10/Materials | Core integrity fell below 50% 264 | -10/Materials | Core integrity fell below 20% 270 | -10/Materials | Discovered new exit (range 11) 275 | -10/Materials | Destroyed by G-34 Mercenary with Small Laser Last Messages --------------- U-05 Engineer lays Concrete. K-01 Serf collects debris. U-05 Engineer lays Concrete. U-05 Engineer builds a Wall. R-06 Scavenger collects Terrain Scanner. The unstable cave ceiling collapses. U-05 Engineer builds a Wall. Acquired Weapon Shielding. U-05 Engineer builds a Wall. Triggered Alarm Trap. An alarm sounds. ALERT: Alarm triggered, dispatching investigation squad. G-34 Mercenary destroyed. Grenade Launcher destroyed. The unstable cave ceiling collapses. G-47 Trooper destroyed. Assault Rifle destroyed. Acquired 20 matter. EXIT=FOUND Acquired 41 matter. Map ----- +----------------------------------------------------+ | | | | | | | | | | | | | | | ?????????????????????????????????????????????????? | | ?????????????????????????????????????????????????? | | ?????????????????????????????????????????????????? | | ?????????????????????????????????????????????????? | | ?????????????????????????????????????????????????? | | ????????????????????????####?????????????????????? | | ???????????????????????# #?????????????????????? | | ?????????????########### < #?????????????????????? | | ?????????????# """ # #?????????????????????? | | ?????????????# """ # +?????????????????????? | | ?????????????+ """ # #?????????????????????? | | ?????????????# + #?????????????????????? | | ?????????????#""" # ##????????????????????? | | ?????????????#"R #########????????????? | | ?????????????#""" ! g ???????????? | | ?????????????# # ?????????????? | | ??################# =# """ ??????????????? | | ??# g """ ??????????????? | | ??# *g @ """ ??????????????? | | ? = # ""???????????? | | ??##+############ #?? #?????????? | | ?? # # g#### #????#??#####?????????? | | """ | # """ # #??# #?????????????????????? | | """ # """ # #??# #?????????????????????? | | """ # """ # #??# #?????????????????????? | | "" # """ + #??# #?????????????????????? | | T" # # #??# #?????????????????????? | | "" # ! # #?? ?????????????????????? | | ?? # # #?? ?????????????????????? | | ###### # !!!# #?? ????????????????????? | | # # ! !# #?? ????????????????????? | | # !! # #?? ##???????????????????? | | ######## #??######????????????????????? | | ## % #?????# #????????????????????????????? | | # ###### ????????????????????????????? | | # ????????????????????????????? | | / T /????????????????????????????? | | # #???????????????????????????? | | # ####### #???????????????????????????? | | # ##??????######???????????????????????????? | | ## #????????????????????????????????????????? | | ##### #????????????????????????? #?????????????? | | ????# #????????#####??????????? #?????????????? | +----------------------------------------------------+ Best States ------------- Heat Dissipation 35 Energy Generation 10 Energy Capacity 125 Matter Stores 298 Matter Capacity 300 Sight Range 16 Terrain Scan Density 10 Weapon Shielding 33 Evasion (%) 50 Item Schematics ----------------- None Robot Schematics ------------------ None Fabricated ------------ Nothing Alien Tech Used ----------------- None Achievements -------------- None Challenges ------------ None Game ------ Seed GuidanceDirtyDriver Manual? 0 Play Time 00:06:25 Cumulative 7.5 hours Start 2020.06.01 @ 18:42:57 End 2020.06.01 @ 18:46:33 Sessions 1 Manual Loads 0 Difficulty Rogue Special Mode None Game No. 9 Rogue 9 Adventurer 0 Explorer 0 Win Type - Total 0 Types 0/0/0/0/0/0/0 Lore% 9 Gallery% 16 Achievement% 15 Wizard Run 0 Options --------- ASCII 0 Keyboard 1 Movement Vi Keybinds 0 Fullscreen 1 Font 18/SmallcapsGlow Map View 76x50 Tactical HUD 0 Map Filters NONE Filters NONE Steam 0 RUN: 9b05e2a1-9060-43f8-9b1e-7bc762e3c275